fUSD/lending_fUSD_20260202
["ID","MTS","AMOUNT","RATE_DAILY","PERIOD"]
[404270630,1770019850309,-163.0,0.000179,3]
[404270631,1770019850318,-306.04439692,0.000179,2]
[404270632,1770019850327,-6556.37111219,0.000179,2]
[404270633,1770019850338,-12770.0,0.000179,2]
[404270634,1770019850347,-1000.0,0.00017906,2]
[404270635,1770019850357,-2896.8757694,0.00017907,2]
[404270636,1770019850366,-333.47,0.00017913,2]
[404270637,1770019850376,-1000.0,0.00017914,2]
[404270638,1770019850387,-517.86422234,0.00017917,2]
[404270639,1770019850397,-500.0,0.00017918,2]
[404270640,1770019850406,-150.0,0.00017919,2]
[404270641,1770019850416,-1000.0,0.00017927,2]
[404270642,1770019850426,-150.0,0.00017935,2]
[404270643,1770019850435,-333.47,0.00017941,2]
[404270644,1770019850445,-103946.3081712,0.00017943,2]
[404270645,1770019850455,-151.0,0.00017943,2]
[404270646,1770019850465,-151.0,0.00017943,2]
[404270647,1770019850478,-256.207376,0.00017943,2]
[404270648,1770019850488,-256.207376,0.00017943,2]
[404270649,1770019850498,-256.207376,0.00017943,2]
[404270650,1770019850508,-256.207376,0.00017943,2]
[404270651,1770019850517,-151.0,0.00017943,2]
[404270652,1770019850528,-1000.0,0.00017945,2]
[404270653,1770019850538,-163.46,0.00017967,2]
[404270654,1770019850548,-387.0,0.00017969,2]
[404270655,1770019850561,-370.87018135,0.00017972,2]
[404270656,1770019850572,-506.1208044,0.00017972,2]
[404270657,1770019850583,-154.05044855,0.00017976,2]
[404270658,1770019850594,-150.0,0.00017978,2]
[404270659,1770019850606,-380871.1847778,0.00017979,2]
[404270660,1770019850616,-8338.7077702,0.00017979,2]
[404270661,1770019850626,-151.0,0.00017979,2]
[404270662,1770019850637,-297.581403,0.00017979,2]
[404270663,1770019850648,-151.0,0.00017979,2]
[404270664,1770019850658,-151.0,0.00017979,2]
[404270665,1770019850667,-151.0,0.00017979,2]
[404270666,1770019850677,-211.795815,0.00017979,2]
[404270667,1770019850690,-151.0,0.00017979,2]
[404270668,1770019850700,-315.036559,0.00017979,2]
[404270669,1770019850711,-151.0,0.00017979,2]
[404270670,1770019850721,-247.496977,0.00017979,2]
[404270671,1770019850731,-315.036559,0.00017979,2]
[404270672,1770019850742,-247.496977,0.00017979,2]
[404270673,1770019850753,-315.036559,0.00017979,2]
[404270674,1770019850763,-315.036559,0.00017979,2]
[404270675,1770019850774,-247.496977,0.00017979,2]
[404270676,1770019850784,-247.496977,0.00017979,2]
[404270677,1770019850794,-151.0,0.00017979,2]
[404270678,1770019850804,-170.567658,0.00017979,2]
[404270679,1770019850814,-151.0,0.00017979,2]
[404270680,1770019850824,-500.0,0.00017982,2]
[404270681,1770019850834,-1000.0,0.0001799,2]
[404270682,1770019850845,-217.08812203,0.0001799,2]
[404270683,1770019850854,-248.17115062,0.00017999,2]
[404270684,1770019850864,-299.809,0.00017999,2]
[404270685,1770019850874,-300.0,0.00017999,2]
[404270686,1770019850884,-300.0,0.00017999,2]
[404270687,1770019850895,-300.0,0.00017999,2]
[404270688,1770019850905,-300.0,0.00017999,2]
[404270689,1770019850915,-666.0,0.00017999,2]
[404270690,1770019850925,-322391.23837739,0.00018,2]
[404270691,1770019850936,-7500.35840853,0.00018,2]
[404270692,1770019850946,-109514.78915317,0.00018,2]
[404270693,1770019850955,-1510479.55391989,0.00018,2]
[404270694,1770019851339,-2521.26651165,0.00018,2]
[404270695,1770019851579,-998.56514103,0.00011317,2]
[404270696,1770019851595,-269.2843,0.00011317,2]
[404270697,1770019851608,-526.54465897,0.00011317,2]
[404270698,1770019851620,-907.94554264,0.00012257,2]
[404270699,1770019851630,-103.96979839,0.00018,2]
[404270700,1770019851659,-302.49,0.00018,2]
[404270701,1770019851793,-513.13780021,0.00011653,2]
[404270702,1770019851806,-386.1600001,0.00011653,2]
[404270703,1770019851819,-285.70219969,0.00011653,2]
[404270704,1770019851829,-1135.0,0.00011677,2]
[404270705,1770019851840,-77.49780031,0.000117,2]
[404270706,1770019851852,-1810.50219969,0.000117,2]
[404270707,1770019851864,-907.94554264,0.00014138,2]
[404270708,1770019851874,-767.04680136,0.00018,2]
[404270709,1770019851886,-1898.17192,0.00018,2]
[404270710,1770019851900,-918.36,0.00018,2]
[404270711,1770019851915,-1275.26194953,0.00018,2]
[404270712,1770019851927,-33381.98596423,0.00018,2]
[404270713,1770019851939,-512.81012733,0.00018,2]
[404270716,1770019896246,-10000.01,0.00011224,2]
[404270717,1770019896448,-10000.01,0.00011224,2]
[404270718,1770019896589,-10000.01,0.00011224,2]
[404270719,1770019896694,-10000.01,0.00011224,2]
[404270720,1770019896811,-10000.01,0.00011224,2]
[404270721,1770019897007,-10000.01,0.00011224,2]
[404270722,1770019897135,-10000.01,0.00011224,2]
[404270723,1770019897254,-10000.01,0.00011224,2]
[404270724,1770019897432,-10000.01,0.00011224,2]
[404270725,1770019897563,-10000.01,0.00011224,2]
[404270726,1770019898340,-690.28032245,0.00011224,2]
[404270727,1770019899215,-10000.01,0.00011224,2]
[404270728,1770019899538,-10000.01,0.00011224,2]
[404270729,1770019899676,-10000.01,0.00011224,2]
[404270730,1770019899793,-10000.01,0.00011224,2]
[404270731,1770019899939,-10000.01,0.00011224,2]
[404270732,1770019900077,-10000.01,0.00011224,2]
[404270733,1770019902140,-10000.01,0.00011224,2]
[404270734,1770019902319,-10000.01,0.00011224,2]
[404270735,1770019902439,-10000.01,0.00011224,2]
[404270736,1770019902893,-413.94416303,0.00011224,2]
[404270737,1770019902927,-10000.01,0.00011224,2]
[404270738,1770019902943,-10000.01,0.00011224,2]
[404270739,1770019902959,-10000.01,0.00011224,2]
[404270740,1770019902993,-10000.01,0.00011224,2]
[404270741,1770019903054,-10000.01,0.00011224,2]
[404270742,1770019903174,-10000.01,0.00011224,2]
[404270743,1770019903284,-10000.01,0.00011224,2]
[404270744,1770019905030,-990.72666353,0.00011224,2]
[404270746,1770019907201,-322.28350113,0.00011224,2]
[404270747,1770019909293,-161.0,0.00011224,2]
[404270748,1770019913787,-202.00140077,0.00011224,2]
[404270749,1770019917972,-417.72240687,0.00011217,2]
[404270750,1770019918012,-429.11018208,0.00011224,2]
[404270757,1770020065746,177.84202769,0.00011024,2]
[404270759,1770020071735,177.84202767,0.00011074,2]
[404270761,1770020098787,150.0,0.00010959,2]
[404270762,1770020105061,-1200.0,0.00011123,2]
[404270763,1770020105092,-300.0,0.00011123,2]
[404270764,1770020105125,-300.0,0.00011123,2]
[404270765,1770020105157,-177.84202767,0.00011124,2]
[404270766,1770020105248,-6044.32594466,0.00011124,2]
[404270767,1770020105282,-681.51025534,0.00011124,2]
[404270768,1770020105313,-1837.54128932,0.00011124,2]
[404270769,1770020105368,-4961.90691068,0.00011124,2]
[404270770,1770020105402,-1471.593,0.00011124,2]
[404270771,1770020105434,-947.0,0.00011204,2]
[404270772,1770020105466,-150.0,0.00011204,2]
[404270773,1770020105501,-1529.824,0.00011205,2]
[404270774,1770020105581,-1803.176,0.00011205,2]
[404270775,1770020105619,-4986.0,0.00011205,2]
[404270776,1770020105693,-28.01,0.00011205,2]
[404270777,1770020105731,-10000.01,0.00011205,2]
[404270778,1770020105859,-614.98,0.00011205,2]
[404270779,1770020105893,-300.0,0.0001121,2]
[404270780,1770020105923,-250.0,0.0001121,2]
[404270781,1770020105959,-2062.05445957,0.00011215,2]
[404270782,1770020105991,-547.79472066,0.00011215,2]
[404270783,1770020106023,-193.21787462,0.00011215,2]
[404270784,1770020106054,-152.30793861,0.00011215,2]
[404270785,1770020106164,-0.01,0.00011216,2]
[404270786,1770020106264,-0.02,0.00011216,2]
[404270787,1770020106298,-1759.27001308,0.00011216,2]
[404270788,1770020106325,-8240.69998692,0.00011216,2]
[404270789,1770020106335,-331.25338461,0.00011217,2]
[404270790,1770020106345,-300.0,0.00011218,2]
[404270791,1770020106355,-250.0,0.00011218,2]
[404270792,1770020106366,-878.04662847,0.00011218,2]
[404270793,1770020106406,-878.06662847,0.00011218,2]
[404270794,1770020106432,-8243.87674306,0.00011218,2]
[404270795,1770020106443,-878.04662847,0.00011218,2]
[404270796,1770020106476,-4121.94337153,0.00011218,2]
[404270797,1770020106486,-5000.0,0.00011218,2]
[404270798,1770020108071,-4999.99,0.00011218,2]
[404270799,1770020108113,-0.03,0.00011221,2]
[404270800,1770020108271,-499.96,0.00011221,2]
[404270801,1770020108306,-151.0,0.00011221,2]
[404270802,1770020108338,-151.0,0.00011221,2]
[404270803,1770020108373,-2092.06378113,0.00011224,2]
[404270804,1770020108406,-184.97792066,0.00011224,2]
[404270805,1770020108439,-378.38431742,0.00011224,2]
[404270806,1770020108579,-3831.71620423,0.00011224,2]
[404270807,1770020108648,-0.02,0.00011224,2]
[404270808,1770020108685,-3085.21796158,0.00011224,2]
[404270809,1770020108703,-2336.57759154,0.00011224,2]
[404270810,1770020108724,-4578.17444688,0.00011224,2]
[404270811,1770020108734,-5421.81555312,0.00011224,2]
[404270812,1770020108842,-10000.01,0.00011224,2]
[404270813,1770020112032,-1787.95555312,0.00011224,2]
[404270814,1770020112057,-6424.09889376,0.00011224,2]
[404270815,1770020112847,-299.99,0.00011224,2]
[404270816,1770020112893,-9400.03,0.00011224,2]
[404270817,1770020113168,-10000.01,0.00011224,2]
[404270818,1770020113304,-10000.01,0.00011224,2]
[404270840,1770020236673,-4158.45625098,0.00011124,2]
[404270841,1770020236732,-1683.09749804,0.00011124,2]
[404270843,1770020237852,-2475.35875294,0.00011124,2]
[404270844,1770020237886,-2445.53239412,0.00011124,2]
[404270846,1770020237937,-158.22770588,0.00011124,2]
[404270848,1770020238179,-150.0,0.00011197,2]
[404270849,1770020238213,-150.30591603,0.00011217,2]
[404270850,1770020238247,-220.83558974,0.00011217,2]
[404270851,1770020238279,-526.22237984,0.00011217,2]
[404270852,1770020238313,-500.0,0.00011217,2]
[404270853,1770020238345,-500.0,0.00011217,2]
[404270855,1770020238377,-500.0,0.00011217,2]
[404270857,1770020238407,-500.0,0.00011217,2]
[404270859,1770020238439,-387.4955611,0.00011217,2]
[404270861,1770020238470,-429.39178028,0.00011218,2]
[404270862,1770020238501,-304.60692626,0.00011223,2]
[404270863,1770020238534,-183.91874471,0.00011223,2]
[404270865,1770020238842,-1294.45620408,0.00011224,2]
[404270866,1770020238870,-10000.01,0.00011224,2]
[404270867,1770020238916,-10000.01,0.00011224,2]
[404270868,1770020238939,-10000.01,0.00011224,2]
[404270869,1770020238969,-10000.01,0.00011224,2]
[404270870,1770020242501,-10000.01,0.00011224,2]
[404270871,1770020242641,-10000.01,0.00011224,2]
[404270872,1770020242787,-10000.01,0.00011224,2]
[404270873,1770020242930,-10000.01,0.00011224,2]
[404270874,1770020243054,-10000.01,0.00011224,2]
[404270875,1770020243167,-10000.01,0.00011224,2]
[404270876,1770020243312,-200.0,0.00011217,2]
[404270877,1770020243353,-9600.01,0.00011224,2]
[404270878,1770020243439,-10000.01,0.00011224,2]
[404270879,1770020243616,-10000.01,0.00011224,2]
[404270881,1770020261168,-2500.0,0.00011124,2]
[404270882,1770020261200,-500.0,0.00011217,2]
[404270883,1770020261568,-4000.01,0.00011224,2]
[404270884,1770020261737,-10000.01,0.00011224,2]
[404270885,1770020261776,-10000.01,0.00011224,2]
[404270886,1770020261793,-4478.28379592,0.00011224,2]
[404270887,1770020261804,-150.99,0.00011224,2]
[404270888,1770020261813,-5370.73620408,0.00011224,2]
[404270889,1770020261856,-1521.47620408,0.00011224,2]
[404270890,1770020261890,-6957.05759184,0.00011224,2]
[404270891,1770020261961,-0.02,0.00011224,2]
[404270892,1770020261988,-9999.97,0.00011224,2]
[404270893,1770020262122,-999.99,0.00011224,2]
[404270894,1770020262154,-1182.49,0.00011224,2]
[404270895,1770020262183,-464.87,0.00011224,2]
[404270896,1770020262310,-843.46,0.00011224,2]
[404270897,1770020262334,-3861.85,0.00011224,2]
[404270898,1770020262358,-4451.24,0.00011224,2]
[404270899,1770020262367,-4705.31,0.00011224,2]
[404270900,1770020262414,-10000.01,0.00011224,2]
[404270901,1770020263852,-601.06610486,0.00011217,2]
[404270902,1770020263878,-8797.87779028,0.00011217,2]
[404270903,1770020263960,-10000.01,0.00011224,2]
[404270904,1770020264150,-10000.01,0.00011224,2]
[404270905,1770020264210,-10000.01,0.00011224,2]
[404270906,1770020312957,-291.0,0.00011123,2]
[404270907,1770020312989,-360.38716795,0.00011124,2]
[404270908,1770020313054,-8697.2356641,0.00011124,2]
[404270909,1770020313160,-10000.01,0.00011124,2]
[404270910,1770020313297,-2230.684204,0.00011124,2]
[404270911,1770020313337,-5538.641592,0.00011124,2]
[404270912,1770020313394,-10000.01,0.00011124,2]
[404270913,1770020313543,-1283.88959274,0.00011124,2]
[404270914,1770020313580,-7432.23081452,0.00011124,2]
[404270915,1770020313655,-3237.96984097,0.00011124,2]
[404270916,1770020313689,-300.0,0.00011216,2]
[404270917,1770020313724,-287.0,0.00011216,2]
[404270918,1770020313757,-224.23763091,0.00011217,2]
[404270919,1770020313791,-151.0,0.00011217,2]
[404270920,1770020313826,-151.0,0.00011217,2]
[404270921,1770020313858,-151.0,0.00011217,2]
[404270922,1770020313890,-151.0,0.00011217,2]
[404270923,1770020313921,-151.0,0.00011217,2]
[404270924,1770020313957,-151.0,0.00011217,2]
[404270925,1770020314151,-151.0,0.00011217,2]
[404270926,1770020314184,-151.0,0.00011217,2]
[404270927,1770020314216,-200.0,0.00011217,2]
[404270928,1770020314249,-151.0,0.00011217,2]
[404270929,1770020314282,-151.0,0.00011217,2]
[404270930,1770020314629,-151.0,0.00011217,2]
[404270931,1770020314663,-151.0,0.00011217,2]
[404270932,1770020314702,-151.0,0.00011217,2]
[404270933,1770020314734,-151.0,0.00011217,2]
[404270934,1770020314769,-151.0,0.00011217,2]
[404270935,1770020314803,-151.0,0.00011217,2]
[404270936,1770020314834,-151.0,0.00011217,2]
[404270937,1770020314865,-151.0,0.00011217,2]
[404270938,1770020314896,-151.0,0.00011217,2]
[404270939,1770020314928,-151.0,0.00011217,2]
[404270940,1770020314959,-151.0,0.00011217,2]
[404270941,1770020314990,-151.0,0.00011217,2]
[404270942,1770020315021,-151.0,0.00011217,2]
[404270943,1770020315053,-151.0,0.00011217,2]
[404270944,1770020315084,-151.0,0.00011217,2]
[404270945,1770020315115,-151.0,0.00011217,2]
[404270946,1770020315164,-282.32995573,0.00011217,2]
[404270947,1770020315200,-500.0,0.00011217,2]
[404270948,1770020315233,-500.0,0.00011217,2]
[404270949,1770020315265,-495.35008854,0.00011217,2]
[404270950,1770020315422,-4.64991146,0.00011217,2]
[404270951,1770020315455,-500.0,0.00011217,2]
[404270952,1770020315488,-500.0,0.00011217,2]
[404270953,1770020315521,-500.0,0.00011217,2]
[404270954,1770020315553,-500.0,0.00011217,2]
[404270955,1770020315593,-500.0,0.00011217,2]
[404270956,1770020315627,-500.0,0.00011217,2]
[404270957,1770020315661,-500.0,0.00011217,2]
[404270958,1770020315696,-500.0,0.00011217,2]
[404270959,1770020315733,-150.0,0.00011223,2]
[404270960,1770020315769,-500.0,0.00011223,2]
[404270961,1770020315812,-190.71017708,0.00011223,2]
[404270962,1770020315888,-309.28982292,0.00011223,2]
[404270963,1770020315926,-500.0,0.00011223,2]
[404270964,1770020315964,-500.0,0.00011223,2]
[404270965,1770020316002,-500.0,0.00011223,2]
[404270966,1770020316046,-500.0,0.00011223,2]
[404270967,1770020316083,-500.0,0.00011223,2]
[404270968,1770020316120,-500.0,0.00011223,2]
[404270969,1770020316158,-500.0,0.00011223,2]
[404270970,1770020316195,-500.0,0.00011223,2]
[404270971,1770020316232,-500.0,0.00011223,2]
[404270972,1770020317783,-500.0,0.00011223,2]
[404270973,1770020317820,-500.0,0.00011223,2]
[404270974,1770020317858,-500.0,0.00011223,2]
[404270975,1770020317895,-500.0,0.00011223,2]
[404270976,1770020317932,-500.0,0.00011223,2]
[404270977,1770020317968,-500.0,0.00011223,2]
[404270978,1770020318004,-500.0,0.00011223,2]
[404270979,1770020318041,-500.0,0.00011223,2]
[404270980,1770020318081,-500.0,0.00011223,2]
[404270981,1770020318117,-500.0,0.00011223,2]
[404270982,1770020318225,-500.0,0.00011223,2]
[404270983,1770020318262,-500.0,0.00011223,2]
[404270984,1770020318301,-500.0,0.00011223,2]
[404270985,1770020318342,-500.0,0.00011223,2]
[404270986,1770020318380,-500.0,0.00011223,2]
[404270987,1770020318417,-500.0,0.00011223,2]
[404270988,1770020318453,-500.0,0.00011223,2]
[404270989,1770020318490,-500.0,0.00011223,2]
[404270990,1770020318527,-500.0,0.00011223,2]
[404270991,1770020318565,-500.0,0.00011223,2]
[404270992,1770020318674,-500.0,0.00011223,2]
[404270993,1770020318714,-500.0,0.00011223,2]
[404270994,1770020318754,-500.0,0.00011223,2]
[404270995,1770020318792,-500.0,0.00011223,2]
[404270996,1770020318831,-500.0,0.00011223,2]
[404270997,1770020318868,-500.0,0.00011223,2]
[404270998,1770020318906,-500.0,0.00011223,2]
[404270999,1770020318944,-500.0,0.00011223,2]
[404271000,1770020318982,-500.0,0.00011223,2]
[404271001,1770020319018,-500.0,0.00011223,2]
[404271002,1770020319183,-3237.96984097,0.00011124,2]
[404271003,1770020319220,-500.0,0.00011223,2]
[404271004,1770020319256,-500.0,0.00011223,2]
[404271005,1770020319293,-500.0,0.00011223,2]
[404271006,1770020319332,-24.07031806,0.00011223,2]
[404271007,1770020319421,-475.92968194,0.00011223,2]
[404271008,1770020319458,-500.0,0.00011223,2]
[404271009,1770020319494,-500.0,0.00011223,2]
[404271010,1770020319550,-500.0,0.00011223,2]
[404271011,1770020319597,-491.37122088,0.00011223,2]
[404271012,1770020319646,-500.0,0.00011223,2]
[404271013,1770020319693,-500.0,0.00011223,2]
[404271014,1770020319741,-500.0,0.00011223,2]
[404271015,1770020319791,-500.0,0.00011223,2]
[404271016,1770020319841,-500.0,0.00011223,2]
[404271017,1770020319913,-500.0,0.00011223,2]
[404271018,1770020319957,-172.97741839,0.00011223,2]
[404271019,1770020319999,-486.74782375,0.00011223,2]
[404271020,1770020320048,-500.0,0.00011223,2]
[404271021,1770020320102,-500.0,0.00011223,2]
[404271022,1770020320152,-500.0,0.00011223,2]
[404271023,1770020320198,-500.0,0.00011223,2]
[404271024,1770020320249,-500.0,0.00011223,2]
[404271025,1770020320292,-500.0,0.00011223,2]
[404271026,1770020320349,-500.0,0.00011223,2]
[404271027,1770020320395,-180.55951572,0.00011223,2]
[404271028,1770020320465,-319.44048428,0.00011223,2]
[404271029,1770020320511,-500.0,0.00011223,2]
[404271030,1770020320560,-500.0,0.00011223,2]
[404271031,1770020320607,-500.0,0.00011223,2]
[404271032,1770020320653,-500.0,0.00011223,2]
[404271033,1770020320698,-500.0,0.00011223,2]
[404271034,1770020320746,-500.0,0.00011223,2]
[404271035,1770020320793,-500.0,0.00011223,2]
[404271036,1770020320844,-500.0,0.00011223,2]
[404271037,1770020320889,-500.0,0.00011223,2]
[404271038,1770020320952,-500.0,0.00011223,2]
[404271039,1770020320995,-500.0,0.00011223,2]
[404271040,1770020321038,-500.0,0.00011223,2]
[404271041,1770020321083,-500.0,0.00011223,2]
[404271042,1770020321126,-500.0,0.00011223,2]
[404271043,1770020321168,-500.0,0.00011223,2]
[404271044,1770020321211,-500.0,0.00011223,2]
[404271045,1770020321255,-500.0,0.00011223,2]
[404271046,1770020321297,-500.0,0.00011223,2]
[404271047,1770020321343,-150.0,0.00011223,2]
[404271048,1770020321386,-200.01,0.00011223,2]
[404271049,1770020322703,-299.99,0.00011223,2]
[404271050,1770020323865,-43.01174939,0.00011224,2]
[404271051,1770020323888,-500.0,0.00011224,2]
[404271052,1770020323904,-500.0,0.00011224,2]
[404271053,1770020323935,-500.0,0.00011224,2]
[404271054,1770020323951,-150.0,0.00011224,2]
[404271055,1770020323968,-500.0,0.00011224,2]
[404271056,1770020324024,-299.99,0.00011224,2]
[404271057,1770020324055,-9400.03,0.00011224,2]
[404271058,1770020324071,-10000.01,0.00011224,2]
[404271059,1770020324099,-10000.01,0.00011224,2]
[404271060,1770020324115,-10000.01,0.00011224,2]
[404271062,1770020492454,1534.101,0.00011,2]
[404271063,1770020492492,158.587,0.00011,2]
[404271064,1770020537529,-10000.01,0.00011117,2]
[404271065,1770020537785,-10000.01,0.00011117,2]
[404271066,1770020537911,-10000.01,0.00011117,2]
[404271067,1770020538181,-10000.01,0.00011117,2]
[404271068,1770020538327,-10000.01,0.00011117,2]
[404271069,1770020538483,-10000.01,0.00011117,2]
[404271070,1770020538615,-10000.01,0.00011117,2]
[404271071,1770020538737,-10000.01,0.00011117,2]
[404271072,1770020538966,-10000.01,0.00011117,2]
[404271073,1770020540460,-10000.01,0.00011117,2]
[404271074,1770020540588,-10000.01,0.00011117,2]
[404271075,1770020541311,-10000.01,0.00011117,2]
[404271076,1770020541354,-10000.01,0.00011117,2]
[404271077,1770020541386,-10000.01,0.00011117,2]
[404271078,1770020541411,-10000.01,0.00011117,2]
[404271079,1770020541455,-10000.01,0.00011117,2]
[404271080,1770020541482,-10000.01,0.00011117,2]
[404271081,1770020541510,-10000.01,0.00011117,2]
[404271082,1770020543695,-10000.01,0.00011117,2]
[404271083,1770020543904,-10000.01,0.00011117,2]
[404271084,1770020544047,-10000.01,0.00011117,2]
[404271085,1770020544181,-10000.01,0.00011117,2]
[404271086,1770020544307,-10000.01,0.00011117,2]
[404271087,1770020544727,-10000.01,0.00011117,2]
[404271088,1770020544757,-10000.01,0.00011117,2]
[404271089,1770020544798,-10000.01,0.00011117,2]
[404271090,1770020544953,-10000.01,0.00011117,2]
[404271091,1770020546652,-10000.01,0.00011117,2]
[404271092,1770020546787,-10000.01,0.00011117,2]
[404271093,1770020546920,-10000.01,0.00011117,2]
[404271094,1770020547054,-10000.01,0.00011117,2]
[404271095,1770020547231,-10000.01,0.00011117,2]
[404271096,1770020547312,-10000.01,0.00011117,2]
[404271097,1770020547434,-10000.01,0.00011117,2]
[404271098,1770020547554,-10000.01,0.00011117,2]
[404271099,1770020547755,-10000.01,0.00011117,2]
[404271100,1770020549800,-10000.01,0.00011117,2]
[404271101,1770020550023,-10000.01,0.00011117,2]
[404271102,1770020550183,-10000.01,0.00011117,2]
[404271103,1770020550349,-10000.01,0.00011117,2]
[404271104,1770020550453,-10000.01,0.00011117,2]
[404271105,1770020550881,-10000.01,0.00011117,2]
[404271106,1770020550915,-10000.01,0.00011117,2]
[404271107,1770020550949,-10000.01,0.00011117,2]
[404271108,1770020551024,-10000.01,0.00011117,2]
[404271109,1770020552758,-10000.01,0.00011117,2]
[404271110,1770020552902,-10000.01,0.00011117,2]
[404271111,1770020553056,-10000.01,0.00011117,2]
[404271112,1770020553202,-10000.01,0.00011117,2]
[404271113,1770020553335,-10000.01,0.00011117,2]
[404271114,1770020553502,-10000.01,0.00011117,2]
[404271115,1770020553647,-10000.01,0.00011117,2]
[404271116,1770020553791,-10000.01,0.00011117,2]
[404271117,1770020553919,-10000.01,0.00011117,2]
[404271118,1770020554120,-10000.01,0.00011117,2]
[404271119,1770020576867,351.52794464,0.00010614,2]
[404271120,1770020576891,10000.0,0.00010614,2]
[404271121,1770020576917,10000.0,0.00010614,2]
[404271122,1770020576946,10000.0,0.00010614,2]
[404271123,1770020576971,10000.0,0.00010614,2]
[404271124,1770020576998,3400.69205536,0.00010614,2]
[404271125,1770020600609,3059.71793703,0.00011017,2]
[404271126,1770020622569,3301.7044792,0.00011017,2]
[404271127,1770020624949,237.88552841,0.00011024,2]
[404271128,1770020624969,5523.42547159,0.00011024,2]
[404271129,1770020625341,3301.7044792,0.00011017,2]
[404271130,1770020673414,234.74100109,0.00015,3]
[404271132,1770020702444,202.58370901,0.00011017,2]
[404271133,1770020709162,-602.0,0.00011096,2]
[404271134,1770020709211,-1200.0,0.00011098,2]
[404271135,1770020709255,-300.0,0.00011098,2]
[404271136,1770020709460,-362.00037518,0.00011097,2]
[404271137,1770020709471,-5434.00962482,0.00011099,2]
[404271138,1770020709616,-10000.01,0.00011099,2]
[404271139,1770020709831,-10000.01,0.00011099,2]
[404271140,1770020709954,-10000.01,0.00011099,2]
[404271141,1770020710081,-4872.44428125,0.00011099,2]
[404271142,1770020710111,-255.1214375,0.00011099,2]
[404271143,1770020710248,-150.0,0.00011116,2]
[404271144,1770020710588,-9700.01,0.00011117,2]
[404271145,1770020710721,-10000.01,0.00011117,2]
[404271146,1770020710779,-10000.01,0.00011117,2]
[404271147,1770020710803,-10000.01,0.00011117,2]
[404271148,1770020711913,-10000.01,0.00011117,2]
[404271149,1770020712088,-10000.01,0.00011117,2]
[404271150,1770020712239,-10000.01,0.00011117,2]
[404271151,1770020712364,-10000.01,0.00011117,2]
[404271152,1770020712480,-10000.01,0.00011117,2]
[404271153,1770020712641,-10000.01,0.00011117,2]
[404271154,1770020712788,-10000.01,0.00011117,2]
[404271155,1770020712945,-10000.01,0.00011117,2]
[404271156,1770020713099,-10000.01,0.00011117,2]
[404271157,1770020713232,-10000.01,0.00011117,2]
[404271158,1770020725882,972.2863402,0.00011017,2]
[404271159,1770020725909,440.8495598,0.00011017,2]
[404271162,1770020745612,755.81909069,0.00011017,2]
[404271163,1770020758420,917.66,0.00010569,2]
[404271164,1770020759311,188.74513068,0.00011017,2]
[404271166,1770020796368,2821.68266404,0.00011024,2]
[404271167,1770020806548,5531.0,0.000145,5]
[404271168,1770020806786,2933.0,0.000142,3]
[404271169,1770020809031,1358.31889959,0.00015,14]
[404271170,1770020814254,2468.97233107,0.00011024,2]
[404271171,1770020827676,2406.27122372,7.945e-05,2]
[404271172,1770020827697,74.58514128,7.945e-05,2]
[404271173,1770020851120,4119.6099,0.00011017,2]
[404271179,1770020854270,5805.80495872,0.00011017,2]
[404271181,1770020854292,10000.0,0.00011017,2]